[Event "VII Open Internacional Quart de Poblet"]
[Site "Quart de Poblet, Spain"]
[Date "2019.08.07"]
[Round "4.6"]
[White "Baeza Garcia, Agustin"]
[Black "Gonzalez Aguirre, Luis"]
[Result "0-1"]
[TimeControl "90m +30s por jugada"]
[WhiteFideId "2298449"]
[BlackFideId "2202000"]
[WhiteElo "1761"]
[BlackElo "2112"]

1. d4 {[%clk 01:30:04]} {[%emt 00:00:56]} d5 {[%clk 01:30:53]} {[%emt
00:00:36]} 2. Nf3 {[%clk 01:29:37]} {[%emt 00:00:28]} Nf6 {[%clk 01:31:18]}
{[%emt 00:00:33]} 3. c4 {[%clk 01:29:03]} {[%emt 00:00:38]} e6 {[%clk
01:31:43]} {[%emt 00:00:40]} 4. Nc3 {[%clk 01:28:07]} {[%emt 00:00:50]} Bb4
{[%clk 01:29:02]} {[%emt 00:03:12]} 5. cxd5 {[%clk 01:26:18]} {[%emt 00:02:19]}
exd5 {[%clk 01:29:26]} {[%emt 00:00:14]} 6. Qa4+ {[%clk 01:25:04]} {[%emt
00:01:35]} Nc6 {[%clk 01:29:49]} {[%emt 00:00:13]} 7. Bg5 {[%clk 01:25:03]}
{[%emt 00:00:28]} O-O {[%clk 01:25:47]} {[%emt 00:04:34]} 8. e3 {[%clk
01:24:58]} {[%emt 00:00:31]} h6 {[%clk 01:24:07]} {[%emt 00:02:10]} 9. Bxf6
{[%clk 01:22:09]} {[%emt 00:03:19]} Qxf6 {[%clk 01:24:13]} {[%emt 00:00:39]} 10.
Be2 {[%clk 01:22:30]} {[%emt 00:00:14]} Be6 {[%clk 01:17:46]} {[%emt 00:06:37]}
11. O-O {[%clk 01:20:30]} {[%emt 00:02:30]} a6 {[%clk 01:18:07]} {[%emt
00:00:26]} 12. Rfc1 {[%clk 01:14:53]} {[%emt 00:05:49]} Bd6 {[%clk 01:17:07]}
{[%emt 00:01:53]} 13. Qd1 {[%clk 01:04:25]} {[%emt 00:10:33]} Ne7 {[%clk
01:11:59]} {[%emt 00:05:45]} 14. Na4 {[%clk 01:02:44]} {[%emt 00:02:09]} b6
{[%clk 01:07:24]} {[%emt 00:05:03]} 15. Qf1 {[%clk 01:02:54]} {[%emt 00:00:22]}
Bc8 {[%clk 01:03:53]} {[%emt 00:03:59]} 16. b4 {[%clk 00:54:35]} {[%emt
00:09:05]} Ng6 {[%clk 01:02:11]} {[%emt 00:01:55]} 17. Nc3 {[%clk 00:48:50]}
{[%emt 00:06:15]} Bb7 {[%clk 01:01:47]} {[%emt 00:00:54]} 18. Rab1 {[%clk
00:48:27]} {[%emt 00:00:54]} Qe7 {[%clk 01:00:33]} {[%emt 00:01:50]} 19. b5
{[%clk 00:45:57]} {[%emt 00:02:55]} a5 {[%clk 01:00:54]} {[%emt 00:00:09]} 20.
Bd3 {[%clk 00:42:05]} {[%emt 00:04:20]} f5 {[%clk 00:53:45]} {[%emt 00:07:39]}
21. Ne2 {[%clk 00:41:47]} {[%emt 00:00:47]} Qf6 {[%clk 00:52:43]} {[%emt
00:01:36]} 22. g3 {[%clk 00:39:29]} {[%emt 00:02:45]} Rae8 {[%clk 00:52:49]}
{[%emt 00:00:24]} 23. Qg2 {[%clk 00:30:15]} {[%emt 00:09:43]} Bc8 {[%clk
00:44:00]} {[%emt 00:09:20]} 24. Nf4 {[%clk 00:25:25]} {[%emt 00:05:20]} Ne7
{[%clk 00:35:00]} {[%emt 00:09:32]} 25. h4 {[%clk 00:17:58]} {[%emt 00:08:00]}
g5 {[%clk 00:32:37]} {[%emt 00:02:48]} 26. Ne2 {[%clk 00:15:56]} {[%emt
00:02:42]} Rf7 {[%clk 00:29:03]} {[%emt 00:03:55]} 27. Kf1 {[%clk 00:16:15]}
{[%emt 00:00:13]} Rg7 {[%clk 00:28:30]} {[%emt 00:01:01]} 28. hxg5 {[%clk
00:14:41]} {[%emt 00:02:26]} hxg5 {[%clk 00:28:51]} {[%emt 00:00:03]} 29. Ke1
{[%clk 00:09:25]} {[%emt 00:05:28]} f4 {[%clk 00:28:57]} {[%emt 00:00:31]} 30.
exf4 {[%clk 00:05:51]} {[%emt 00:03:57]} gxf4 {[%clk 00:28:38]} {[%emt
00:00:51]} 31. Kd2 {[%clk 00:05:28]} {[%emt 00:00:51]} Bf5 {[%clk 00:23:46]}
{[%emt 00:05:21]} 32. Rh1 {[%clk 00:03:51]} {[%emt 00:02:10]} Bxd3 {[%clk
00:22:12]} {[%emt 00:02:01]} 33. Kxd3 {[%clk 00:04:18]} {[%emt 00:00:30]} Qg6+
{[%clk 00:17:08]} {[%emt 00:05:14]} 34. Kc3 {[%clk 00:04:40]} {[%emt 00:00:30]}
fxg3 {[%clk 00:11:59]} {[%emt 00:05:11]} 35. Nxg3 {[%clk 00:03:18]} {[%emt
00:01:51]} Nf5 {[%clk 00:09:27]} {[%emt 00:03:05]} 36. Qh3 {[%clk 00:01:50]}
{[%emt 00:01:55]} Nxg3 {[%clk 00:09:02]} {[%emt 00:00:55]} 37. fxg3 {[%clk
00:02:09]} {[%emt 00:00:14]} Re3+ {[%clk 00:08:46]} {[%emt 00:00:46]} 38. Kb2
{[%clk 00:01:54]} {[%emt 00:00:41]} Rxf3 {[%clk 00:08:46]} {[%emt 00:00:46]} 39.
Qh8+ {[%clk 00:02:09]} {[%emt 00:00:03]} Kf7 {[%clk 00:09:14]} 40. Rbe1 {[%clk
00:00:51]} {[%emt 00:01:46]} Be7 {[%clk 00:06:34]} {[%emt 00:03:11]} 41. Rh6
{[%clk 00:01:10]} {[%emt 00:00:41]} Rf2+ {[%clk 00:06:26]} {[%emt 00:00:09]} 42.
Ka1 {[%clk 00:01:35]} {[%emt 00:00:15]} Qxg3 {[%clk 00:03:20]} {[%emt
00:03:28]} 43. Rh3 {[%clk 00:01:59]} {[%emt 00:00:07]} Qg2 {[%clk 00:02:01]}
{[%emt 00:01:49]} 44. Rxe7+ {[%clk 00:01:38]} {[%emt 00:00:48]} Kxe7 {[%clk
00:02:09]} {[%emt 00:00:25]} 45. Re3+ {[%clk 00:02:00]} {[%emt 00:00:21]} Kd6
{[%clk 00:00:37]} 46. Qd8+ {[%clk 00:02:00]} Rd7 0-1

[Event "VII Open Internacional Quart de Poblet"]
[Site "Quart de Poblet, Spain"]
[Date "2019.08.07"]
[Round "4.7"]
[White "Martin Ayala, David"]
[Black "Serrano Felipe, Rafael"]
[Result "1/2-1/2"]
[TimeControl "90m +30s por jugada"]
[WhiteFideId "2247216"]
[BlackFideId "2252112"]
[WhiteElo "2109"]
[BlackElo "2101"]

1. Nf3 {[%clk 01:30:54]} {[%emt 00:00:25]} Nf6 {[%clk 01:30:46]} {[%emt
00:00:04]} 2. d4 {[%clk 01:31:03]} {[%emt 00:00:12]} e6 {[%clk 01:30:57]}
{[%emt 00:00:37]} 3. Bg5 {[%clk 01:29:53]} {[%emt 00:01:21]} c5 {[%clk
01:30:27]} {[%emt 00:01:24]} 4. c3 {[%clk 01:30:06]} Qb6 {[%clk 01:30:30]}
{[%emt 00:00:23]} 5. Qb3 {[%clk 01:29:42]} {[%emt 00:00:51]} Nc6 {[%clk
01:30:25]} {[%emt 00:00:36]} 6. Bxf6 {[%clk 01:28:19]} {[%emt 00:01:53]} gxf6
{[%clk 01:30:51]} {[%emt 00:00:16]} 7. e3 {[%clk 01:27:16]} {[%emt 00:01:20]}
d5 {[%clk 01:29:38]} {[%emt 00:01:44]} 8. Nbd2 {[%clk 01:26:10]} {[%emt
00:01:35]} f5 {[%clk 01:22:38]} {[%emt 00:07:32]} 9. Bb5 {[%clk 01:20:51]}
{[%emt 00:05:46]} c4 {[%clk 01:15:23]} {[%emt 00:07:48]} 10. Bxc6+ {[%clk
01:19:02]} {[%emt 00:02:17]} bxc6 {[%clk 01:15:25]} {[%emt 00:00:28]} 11. Qa4
{[%clk 01:15:03]} {[%emt 00:04:31]} Bd6 {[%clk 01:12:32]} {[%emt 00:03:20]} 12.
b3 {[%clk 01:14:09]} {[%emt 00:01:25]} Qb5 {[%clk 01:12:25]} {[%emt 00:00:37]}
13. Qxb5 {[%clk 01:13:45]} {[%emt 00:00:53]} cxb5 {[%clk 01:12:53]} {[%emt
00:00:41]} 14. a4 {[%clk 01:13:32]} {[%emt 00:00:07]} b4 {[%clk 01:12:32]}
{[%emt 00:00:50]} 15. cxb4 {[%clk 01:12:32]} {[%emt 00:01:29]} c3 {[%clk
01:12:39]} {[%emt 00:00:37]} 16. Nb1 {[%clk 01:11:49]} {[%emt 00:01:14]} Bxb4
{[%clk 01:12:16]} {[%emt 00:00:38]} 17. Kd1 {[%clk 01:10:59]} {[%emt 00:01:21]}
a5 {[%clk 01:06:15]} {[%emt 00:06:30]} 18. Kc2 {[%clk 01:09:23]} {[%emt
00:02:07]} Ba6 {[%clk 01:06:09]} {[%emt 00:00:36]} 19. Ne5 {[%clk 01:05:07]}
{[%emt 00:04:46]} Rc8 {[%clk 01:05:40]} {[%emt 00:01:02]} 20. Na3 {[%clk
01:03:48]} {[%emt 00:01:46]} Rg8 {[%clk 01:01:32]} {[%emt 00:04:39]} 21. g3
{[%clk 01:03:48]} {[%emt 00:00:31]} Be2 {[%clk 00:51:17]} {[%emt 00:10:43]} 22.
Rhe1 {[%clk 01:02:17]} {[%emt 00:02:02]} Ba6 {[%clk 00:50:22]} {[%emt
00:01:27]} 23. Nb5 {[%clk 00:59:06]} {[%emt 00:03:37]} f6 {[%clk 00:45:44]}
{[%emt 00:05:44]} 24. Nd3 {[%clk 00:59:18]} {[%emt 00:00:04]} Kd7 {[%clk
00:44:23]} {[%emt 00:01:30]} 25. Rec1 {[%clk 00:58:21]} {[%emt 00:01:26]} Rb8
{[%clk 00:44:08]} {[%emt 00:00:46]} 26. Nxc3 {[%clk 00:57:38]} {[%emt
00:01:13]} Rgc8 {[%clk 00:42:56]} {[%emt 00:01:41]} 27. Kd2 {[%clk 00:57:41]}
{[%emt 00:00:41]} Bxc3+ {[%clk 00:37:41]} {[%emt 00:05:33]} 28. Rxc3 {[%clk
00:57:51]} {[%emt 00:00:29]} Rxc3 {[%clk 00:38:05]} {[%emt 00:00:09]} 29. Kxc3
{[%clk 00:58:01]} {[%emt 00:00:48]} Bxd3 {[%clk 00:38:29]} 30. Kxd3 {[%clk
00:58:21]} Rxb3+ {[%clk 00:38:53]} 31. Kc2 {[%clk 00:57:42]} {[%emt 00:00:49]}
Rb4 {[%clk 00:39:11]} {[%emt 00:00:18]} 32. f4 {[%clk 00:55:29]} {[%emt
00:02:45]} e5 {[%clk 00:35:55]} {[%emt 00:03:40]} 33. Kc3 {[%clk 00:50:47]}
{[%emt 00:05:12]} Ke6 {[%clk 00:33:58]} {[%emt 00:02:26]} 34. Ra2 {[%clk
00:50:47]} {[%emt 00:00:29]} Kd6 {[%clk 00:30:28]} {[%emt 00:04:02]} 35. Rb2
{[%clk 00:47:21]} {[%emt 00:03:55]} Rxb2 {[%clk 00:22:30]} {[%emt 00:08:33]} 36.
Kxb2 {[%clk 00:47:49]} e4 {[%clk 00:22:55]} {[%emt 00:00:04]} 37. Kc3 {[%clk
00:48:07]} {[%emt 00:00:15]} Ke7 {[%clk 00:23:15]} {[%emt 00:00:05]} 38. Kd2
{[%clk 00:47:44]} {[%emt 00:00:52]} Kf7 {[%clk 00:23:43]} {[%emt 00:00:11]} 39.
Ke2 {[%clk 00:46:54]} {[%emt 00:01:11]} Kg6 {[%clk 00:23:33]} {[%emt 00:00:40]}
40. Kf2 {[%clk 00:46:50]} {[%emt 00:00:44]} Kg7 {[%clk 00:15:35]} {[%emt
00:08:18]} 41. Kg2 {[%clk 00:47:05]} {[%emt 00:00:16]} Kg6 {[%clk 00:16:01]}
{[%emt 00:00:08]} 42. Kh3 {[%clk 00:46:05]} {[%emt 00:01:25]} Kh5 {[%clk
00:16:18]} {[%emt 00:00:21]} 43. Kg2 {[%clk 00:45:55]} {[%emt 00:00:31]} Kg6
{[%clk 00:16:40]} {[%emt 00:00:35]} 44. h3 {[%clk 00:43:35]} {[%emt 00:02:24]}
h5 {[%clk 00:16:35]} {[%emt 00:00:39]} 45. Kh2 {[%clk 00:43:39]} {[%emt
00:00:32]} Kh6 {[%clk 00:16:41]} {[%emt 00:00:13]} 46. Kg2 {[%clk 00:41:42]}
{[%emt 00:02:29]} Kg6 {[%emt 00:01:33]} 1/2-1/2

[Event "VII Open Internacional Quart de Poblet"]
[Site "Quart de Poblet, Spain"]
[Date "2019.08.07"]
[Round "4.8"]
[White "Sanchez Saez, Francisco"]
[Black "Gutierrez Marco, Dario"]
[Result "1-0"]
[TimeControl "90m +30s por jugada"]
[WhiteFideId "2231743"]
[BlackFideId "24529125"]
[WhiteElo "2359"]
[BlackElo "1952"]

1. Nf3 {[%clk 01:29:16]} {[%emt 00:00:04]} d5 {[%clk 01:30:50]} 2. b3 {[%clk
01:29:41]} Nf6 {[%clk 01:30:39]} {[%emt 00:00:33]} 3. Bb2 {[%clk 01:30:04]}
{[%emt 00:00:36]} Bf5 {[%clk 01:30:45]} 4. g3 {[%clk 01:29:04]} {[%emt
00:01:31]} e6 {[%clk 01:29:42]} {[%emt 00:01:27]} 5. Bg2 {[%clk 01:29:26]}
{[%emt 00:00:14]} h6 {[%clk 01:29:23]} {[%emt 00:00:42]} 6. d3 {[%clk
01:29:47]} {[%emt 00:00:43]} Be7 {[%clk 01:28:23]} {[%emt 00:01:08]} 7. O-O
{[%clk 01:30:10]} O-O {[%clk 01:28:40]} {[%emt 00:00:15]} 8. Nbd2 {[%clk
01:30:35]} {[%emt 00:00:04]} Nbd7 {[%clk 01:25:20]} {[%emt 00:03:46]} 9. Re1
{[%clk 01:30:04]} {[%emt 00:01:05]} c6 {[%clk 01:17:41]} {[%emt 00:08:03]} 10.
e4 {[%clk 01:30:25]} {[%emt 00:00:15]} dxe4 {[%clk 01:15:25]} {[%emt 00:02:42]}
11. dxe4 {[%clk 01:30:48]} {[%emt 00:00:12]} Bh7 {[%clk 01:15:30]} {[%emt
00:00:19]} 12. Qe2 {[%clk 01:28:38]} {[%emt 00:02:52]} Qc7 {[%clk 01:07:11]}
{[%emt 00:08:41]} 13. Rad1 {[%clk 01:27:37]} {[%emt 00:01:30]} Rad8 {[%clk
01:01:16]} {[%emt 00:06:22]} 14. e5 {[%clk 01:16:06]} {[%emt 00:12:00]} Nd5
{[%clk 00:56:25]} {[%emt 00:05:32]} 15. Ne4 {[%clk 01:01:31]} {[%emt 00:14:55]}
Qa5 {[%clk 00:46:24]} {[%emt 00:10:33]} 16. Nd6 {[%clk 00:43:36]} {[%emt
00:18:23]} Bxd6 {[%clk 00:35:09]} {[%emt 00:11:44]} 17. exd6 {[%clk 00:43:58]}
{[%emt 00:00:10]} Qxa2 {[%clk 00:34:30]} {[%emt 00:01:06]} 18. c4 {[%clk
00:43:24]} {[%emt 00:01:05]} N5f6 {[%clk 00:27:32]} {[%emt 00:07:33]} 19. Nd4
{[%clk 00:42:14]} {[%emt 00:01:35]} Qa5 {[%clk 00:24:52]} {[%emt 00:03:10]} 20.
Ra1 {[%clk 00:29:24]} {[%emt 00:13:24]} Qb6 {[%clk 00:22:59]} {[%emt 00:02:19]}
21. Red1 {[%clk 00:22:52]} {[%emt 00:07:01]} a6 {[%clk 00:17:51]} {[%emt
00:05:39]} 22. Bc3 {[%clk 00:22:51]} {[%emt 00:00:31]} Rc8 {[%clk 00:15:55]}
{[%emt 00:02:26]} 23. Ba5 {[%clk 00:18:09]} {[%emt 00:05:11]} Qa7 {[%clk
00:12:04]} {[%emt 00:04:21]} 24. b4 {[%clk 00:16:17]} {[%emt 00:02:23]} b6
{[%clk 00:07:22]} {[%emt 00:05:13]} 25. Nxc6 {[%clk 00:12:38]} {[%emt
00:04:07]} Rxc6 {[%clk 00:07:44]} {[%emt 00:00:34]} 26. Bxc6 {[%clk 00:13:01]}
{[%emt 00:00:04]} bxa5 {[%clk 00:08:07]} 27. c5 {[%clk 00:12:35]} {[%emt
00:00:43]} axb4 {[%clk 00:06:41]} {[%emt 00:01:52]} 28. Bxd7 {[%clk 00:12:52]}
{[%emt 00:00:44]} Qxd7 {[%clk 00:05:12]} {[%emt 00:01:29]} 29. Rxa6 {[%clk
00:11:24]} {[%emt 00:02:04]} Be4 {[%clk 00:05:14]} {[%emt 00:00:23]} 30. Rb6
{[%clk 00:07:24]} {[%emt 00:04:28]} Rc8 {[%clk 00:04:09]} {[%emt 00:01:34]} 31.
Rxb4 {[%clk 00:07:09]} {[%emt 00:00:46]} Rxc5 {[%clk 00:01:34]} {[%emt
00:03:04]} 32. Rxe4 {[%clk 00:07:27]} {[%emt 00:00:41]} Nxe4 {[%clk 00:02:00]}
33. Qxe4 {[%clk 00:07:53]} {[%emt 00:00:04]} Rc6 {[%clk 00:02:21]} 34. Qxc6
{[%emt 00:01:09]} 1-0

[Event "VII Open Internacional Quart de Poblet"]
[Site "Quart de Poblet, Spain"]
[Date "2019.08.07"]
[Round "4.9"]
[White "Santos Saura, Iobhar"]
[Black "Ulla Centelles, Llorens"]
[Result "0-1"]
[TimeControl "90m +30s por jugada"]
[BlackFideId "24541087"]
[WhiteElo "1644"]
[BlackElo "1273"]

1. e4 {[%clk 01:30:58]} {[%emt 00:00:01]} e5 {[%clk 01:18:58]} {[%emt
00:11:56]} 2. Nf3 {[%clk 01:31:22]} {[%emt 00:00:12]} d6 {[%clk 01:19:01]}
{[%emt 00:00:23]} 3. d4 {[%clk 01:31:29]} {[%emt 00:00:28]} exd4 {[%clk
01:19:11]} {[%emt 00:00:14]} 4. Nxd4 {[%clk 01:31:54]} {[%emt 00:00:10]} Bd7
{[%clk 01:19:17]} {[%emt 00:00:19]} 5. Nc3 {[%clk 01:32:13]} {[%emt 00:00:17]}
Nc6 {[%clk 01:19:19]} {[%emt 00:00:21]} 6. a3 {[%clk 01:29:55]} {[%emt
00:02:55]} Ne5 {[%clk 01:19:02]} {[%emt 00:00:39]} 7. Be2 {[%clk 01:29:24]}
{[%emt 00:01:09]} Nf6 {[%clk 01:19:03]} {[%emt 00:00:22]} 8. O-O {[%clk
01:29:05]} {[%emt 00:00:56]} Qc8 {[%clk 01:19:01]} {[%emt 00:00:26]} 9. Bg5
{[%clk 01:28:35]} {[%emt 00:01:07]} Be7 {[%clk 01:16:17]} {[%emt 00:03:06]} 10.
f3 {[%clk 01:03:58]} {[%emt 00:25:15]} O-O {[%clk 01:16:11]} {[%emt 00:00:31]}
11. Qe1 {[%clk 01:02:19]} {[%emt 00:02:13]} Kh8 {[%clk 01:16:24]} {[%emt
00:00:10]} 12. f4 {[%clk 00:49:45]} {[%emt 00:13:11]} Ng6 {[%clk 01:16:11]}
{[%emt 00:00:38]} 13. f5 {[%clk 00:47:46]} {[%emt 00:02:34]} Ne5 {[%clk
01:16:27]} {[%emt 00:00:09]} 14. Qh4 {[%clk 00:47:27]} {[%emt 00:00:53]} a6
{[%clk 01:14:35]} {[%emt 00:02:16]} 15. Nd5 {[%clk 00:26:59]} {[%emt 00:21:05]}
Nxd5 {[%clk 01:14:35]} {[%emt 00:00:25]} 16. exd5 {[%clk 00:27:15]} Bxg5 {[%clk
01:14:02]} {[%emt 00:01:15]} 17. Qxg5 {[%clk 00:27:43]} {[%emt 00:00:09]} f6
{[%clk 01:13:35]} {[%emt 00:00:52]} 18. Qh4 {[%clk 00:27:02]} {[%emt 00:01:13]}
Nf7 {[%clk 01:13:13]} {[%emt 00:00:50]} 19. Rae1 {[%clk 00:20:59]} {[%emt
00:06:36]} Nh6 {[%clk 01:11:39]} {[%emt 00:01:53]} 20. Ne6 {[%clk 00:20:50]}
{[%emt 00:00:52]} Rg8 {[%clk 01:11:05]} {[%emt 00:00:59]} 21. Rf3 {[%clk
00:16:17]} {[%emt 00:05:07]} c6 {[%clk 01:11:02]} {[%emt 00:00:26]} 22. Nxg7
{[%clk 00:07:45]} {[%emt 00:09:10]} Rxg7 {[%clk 01:10:51]} {[%emt 00:00:37]} 23.
Qxh6 {[%clk 00:08:12]} {[%emt 00:00:07]} Qf8 {[%clk 01:10:49]} {[%emt
00:00:26]} 24. Bc4 {[%clk 00:03:57]} {[%emt 00:04:51]} Rxg2+ {[%clk 01:10:56]}
{[%emt 00:00:09]} 0-1

[Event "VII Open Internacional Quart de Poblet"]
[Site "Quart de Poblet, Spain"]
[Date "2019.08.08"]
[Round "5.1"]
[White "Cruz Lledo, Pablo"]
[Black "Nieves Cabanes, Jose Manuel"]
[Result "1-0"]
[TimeControl "90m +30s por jugada"]
[WhiteFideId "2297361"]
[BlackFideId "22245715"]
[WhiteElo "2445"]
[BlackElo "2311"]

1. d4 {[%clk 01:30:39]} {[%emt 00:00:22]} Nf6 {[%clk 01:30:52]} {[%emt
00:00:13]} 2. Nf3 {[%clk 01:31:01]} {[%emt 00:00:07]} g6 {[%clk 01:29:57]}
{[%emt 00:01:21]} 3. c4 {[%clk 01:31:00]} {[%emt 00:00:37]} Bg7 {[%clk
01:30:17]} {[%emt 00:00:05]} 4. Nc3 {[%clk 01:30:32]} {[%emt 00:00:58]} d5
{[%clk 01:30:00]} {[%emt 00:00:47]} 5. e3 {[%clk 01:30:11]} {[%emt 00:00:51]}
O-O {[%clk 01:29:46]} {[%emt 00:00:43]} 6. cxd5 {[%clk 01:29:39]} {[%emt
00:01:06]} Nxd5 {[%clk 01:29:53]} {[%emt 00:00:19]} 7. Bc4 {[%clk 01:29:58]}
{[%emt 00:00:12]} Nb6 {[%clk 01:28:39]} {[%emt 00:01:44]} 8. Bb3 {[%clk
01:30:22]} {[%emt 00:00:06]} c5 {[%clk 01:28:15]} {[%emt 00:00:53]} 9. O-O
{[%clk 01:29:16]} {[%emt 00:01:38]} cxd4 {[%clk 01:26:03]} {[%emt 00:02:41]} 10.
Nxd4 {[%clk 01:29:38]} {[%emt 00:00:07]} N8d7 {[%clk 01:20:41]} {[%emt
00:05:52]} 11. Qe2 {[%clk 01:29:32]} {[%emt 00:00:36]} Nc5 {[%clk 01:20:06]}
{[%emt 00:01:12]} 12. Bc2 {[%clk 01:29:48]} {[%emt 00:00:13]} a6 {[%clk
01:16:55]} {[%emt 00:03:39]} 13. Rd1 {[%clk 01:28:59]} {[%emt 00:01:15]} Qc7
{[%clk 01:17:19]} {[%emt 00:00:06]} 14. a4 {[%clk 01:28:10]} {[%emt 00:01:24]}
Ne6 {[%clk 01:12:54]} {[%emt 00:04:51]} 15. a5 {[%clk 01:28:03]} {[%emt
00:00:37]} Nxd4 {[%clk 01:04:27]} {[%emt 00:08:56]} 16. exd4 {[%clk 01:28:14]}
{[%emt 00:00:23]} Nd7 {[%clk 01:04:14]} {[%emt 00:00:40]} 17. Nd5 {[%clk
01:24:27]} {[%emt 00:04:16]} Qd6 {[%clk 01:04:28]} {[%emt 00:00:17]} 18. Nxe7+
{[%clk 01:24:14]} {[%emt 00:00:42]} Kh8 {[%clk 01:04:55]} {[%emt 00:00:10]} 19.
b3 {[%clk 01:14:28]} {[%emt 00:10:10]} Nf6 {[%clk 01:03:01]} {[%emt 00:02:24]}
20. Ba3 {[%clk 01:13:51]} {[%emt 00:01:07]} Qe6 {[%clk 01:00:57]} {[%emt
00:02:37]} 21. Qc4 {[%clk 00:36:28]} {[%emt 00:37:50]} Bd7 {[%clk 00:58:17]}
{[%emt 00:03:09]} 22. d5 {[%clk 00:35:58]} {[%emt 00:01:07]} Qg4 {[%clk
00:55:50]} {[%emt 00:02:52]} 23. Bb2 {[%clk 00:32:25]} {[%emt 00:04:10]} Qh5
{[%clk 00:54:18]} {[%emt 00:02:00]} 24. Qf4 {[%clk 00:30:22]} {[%emt 00:02:56]}
Qe2 {[%clk 00:48:58]} {[%emt 00:05:26]} 25. Bxf6 {[%clk 00:29:26]} {[%emt
00:01:21]} Qxc2 {[%clk 00:48:56]} {[%emt 00:00:36]} 26. Qe5 {[%clk 00:29:40]}
{[%emt 00:00:12]} 1-0